bitfinex/quotes_ETHUSD_20251107
["timestamp","ask_amount","ask_price","bid_price","bid_amount"]
[1762540262068,0.002,3424.2,3423.8,3.89623135]
[1762540262507,0.002,3424.2,3423.8,0.9755]
[1762540262922,0.002,3424.2,3423.5,0.1875]
[1762540262923,2.92082369,3423.7,3423.5,0.1875]
[1762540263080,0.1456,3423.5,3423.3,0.4882]
[1762540263403,2.92096687,3423.6,3423.3,0.4882]
[1762540263609,0.1456,3423.3,3422.8,0.6701]
[1762540263792,0.1456,3422.8,3422.3,3.4101508]
[1762540263993,0.1456,3422.4,3422.1,0.1875]
[1762540264192,0.1456,3422.4,3422.3,2.92201151]
[1762540264377,0.1456,3422.4,3422.3,3.39861151]
[1762540264703,2.92768977,3423.9,3422.4,2.92192613]
[1762540264865,0.007,3423.9,3422.5,3.41004075]
[1762540265064,0.1456,3423.3,3423.2,2.92123497]
[1762540265404,2.9208064,3423.8,3423.1,2.92132773]
[1762540265584,2.9208064,3423.8,3423.2,3.57974254]
[1762540265781,0.007,3423.9,3423.2,0.6585]
[1762540265989,0.007,3423.9,3423.6,2.92088937]
[1762540266311,0.007,3423.9,3423.3,0.4882]
[1762540266606,0.007,3423.9,3423.8,0.4766]
[1762540267374,0.007,3423.9,3423.8,3.88553135]
[1762540267686,0.002,3424.2,3424.1,2.92047545]
[1762540267872,0.002,3424.5,3424.2,3.39699016]
[1762540268068,0.002,3424.5,3424.4,3.3968196]
[1762540268509,0.002,3424.5,3424.4,3.91422179]
[1762540269125,0.005,3424.9,3424.8,2.91987853]
[1762540269275,0.005,3424.9,3424.8,3.5330786]
[1762540269599,0.005,3424.9,3424.8,4.0212786]
[1762540269775,0.005,3424.9,3424.8,3.99207982]
[1762540270177,2.91818055,3426.8,3425.8,2.91902621]
[1762540270371,6.76497001,3426.9,3424.9,0.4882]
[1762540270372,6.47047001,3426.9,3424.9,0.4882]
[1762540270609,1.259712,3426.8,3425.1,2.91962278]
[1762540270815,6.47047001,3426.9,3425.0,0.36814041]
[1762540271019,6.47047001,3426.9,3425.8,2.91902621]
[1762540271020,1.259712,3426.8,3425.8,2.91902621]
[1762540271220,6.47047001,3426.9,3425.8,0.4882]
[1762540271422,2.91849089,3426.5,3425.8,0.4882]
[1762540271607,0.005,3426.9,3425.8,0.4882]
[1762540271806,2.91825427,3426.8,3425.8,3.39562621]
[1762540272139,2.91825427,3426.8,3425.8,3.88382621]
[1762540272140,2.91818718,3426.8,3425.8,3.88382621]
[1762540272299,1.259712,3426.5,3425.8,3.88382621]
[1762540272498,2.91888508,3426.0,3425.3,2.91943217]
[1762540272702,0.58925726,3425.9,3425.1,0.4882]
[1762540273020,0.58925726,3425.9,3425.3,2.91939162]
[1762540273419,0.58925726,3425.9,3425.4,2.91935275]
[1762540273637,0.58925726,3425.9,3425.2,0.4882]
[1762540273935,2.91906445,3425.8,3424.8,3.40801308]
[1762540274121,0.0945,3425.9,3424.8,0.4882]
[1762540274322,2.91916576,3425.7,3425.0,2.91963191]
[1762540274553,2.91916576,3425.7,3424.9,0.4882]
[1762540274554,0.0965,3425.9,3424.9,0.4882]
[1762540274928,0.007,3425.9,3425.0,3.40786031]
[1762540275134,0.007,3425.9,3425.4,2.91936094]
[1762540275433,0.1456,3425.4,3425.1,3.40776933]
[1762540275794,0.1456,3425.4,3425.3,0.4766]
[1762540276001,0.1456,3425.4,3425.3,3.39605231]
[1762540276221,0.1456,3425.4,3425.3,0.9648]
[1762540276747,0.1456,3425.4,3425.3,3.88425231]
[1762540277546,0.007,3425.9,3425.5,2.91925088]
[1762540277755,0.1456,3425.6,3425.5,2.91925088]
[1762540277898,0.1456,3425.6,3425.5,3.40745088]
[1762540278240,0.1456,3425.6,3425.5,0.9648]
[1762540278752,0.1456,3425.6,3425.3,2.91943372]
[1762540279060,0.0965,3425.9,3424.8,0.4882]
[1762540279238,0.0965,3425.9,3424.9,0.02919793]
[1762540279239,0.1456,3425.1,3424.9,0.02919793]
[1762540279626,0.1456,3425.5,3425.1,2.91956172]
[1762540279830,0.1456,3425.5,3425.2,0.4882]
[1762540280032,0.1456,3425.5,3425.4,0.4766]
[1762540280226,0.1456,3425.5,3425.4,3.39596708]
[1762540280432,0.007,3425.9,3425.6,2.91915349]
[1762540280649,0.007,3425.9,3425.5,0.4882]
[1762540280815,0.007,3425.9,3425.5,2.91926236]
[1762540281252,0.007,3425.9,3425.6,2.91918982]
[1762540281456,0.007,3425.9,3425.1,0.4882]
[1762540281627,0.007,3425.9,3425.5,2.91922969]
[1762540281833,0.0965,3425.9,3425.4,2.9193526]
[1762540282356,0.0965,3425.9,3425.5,2.91927901]
[1762540282717,0.007,3425.9,3425.4,2.91936708]
[1762540283158,0.007,3425.9,3425.5,2.91926845]
[1762540283340,0.007,3425.9,3425.2,0.4882]
[1762540283541,0.007,3425.9,3425.6,2.91917347]
[1762540283743,0.007,3425.9,3425.5,2.91924585]
[1762540284124,0.007,3425.9,3425.6,2.91919485]
[1762540284354,0.007,3425.9,3425.2,0.4882]
[1762540284355,0.007,3425.9,3425.5,2.9192517]
[1762540284542,0.007,3425.9,3425.3,0.4882]
[1762540284743,0.007,3425.9,3425.8,3.39562621]
[1762540285057,0.007,3425.9,3425.8,4.02710078]
[1762540285261,0.007,3425.9,3425.8,4.51530078]
[1762540285563,0.007,3425.9,3425.8,0.4766]
[1762540285718,0.007,3425.9,3425.5,3.40741272]
[1762540285935,0.0895,3425.8,3425.1,2.91956256]
[1762540286475,0.0895,3425.8,3425.3,2.91943326]
[1762540286979,0.007,3425.9,3425.5,2.9192307]
[1762540287174,0.007,3425.9,3425.6,2.91914597]
[1762540287344,0.007,3425.9,3425.8,3.39562621]
[1762540287553,0.002,3426.3,3426.2,2.91868542]
[1762540287758,0.002,3426.3,3426.2,3.57718542]
[1762540288069,0.005,3426.9,3426.2,3.57718542]
[1762540288070,0.005,3426.9,3426.8,2.91817439]
[1762540288243,0.005,3426.9,3426.8,0.4766]
[1762540288444,0.005,3426.9,3426.3,0.4882]
[1762540288445,0.005,3426.9,3426.3,3.40679893]
[1762540288633,0.005,3426.9,3426.8,3.39477439]
[1762540288833,0.005,3426.9,3426.8,3.88297439]
[1762540290380,0.005,3426.9,3426.8,4.02857439]
[1762540290677,0.005,3426.9,3426.8,3.88297439]
[1762540291489,0.005,3426.9,3426.3,0.4882]
[1762540291670,0.005,3426.9,3426.3,3.40672752]
[1762540291838,0.005,3426.9,3426.5,2.9183988]
[1762540292037,0.005,3426.9,3426.3,0.4882]
[1762540292368,0.005,3426.9,3426.8,3.37357439]
[1762540292572,0.005,3426.9,3426.8,4.00275905]
[1762540292886,0.005,3426.9,3426.8,3.37357439]
[1762540293085,0.005,3426.9,3426.8,3.86027439]
[1762540293086,0.007,3426.9,3426.8,3.86027439]
[1762540293440,0.6134,3426.9,3425.2,0.4867]
[1762540293635,0.3624,3426.9,3425.2,0.4867]
[1762540293858,1.259712,3426.3,3424.9,0.001]
[1762540294144,2.91918747,3425.7,3424.9,2.92073731]
[1762540294338,0.7725182,3426.2,3424.9,2.92073731]
[1762540294339,1.0690182,3426.2,3425.0,2.91970802]
[1762540294538,1.0690182,3426.2,3425.1,0.22519622]
[1762540294539,0.7725182,3426.2,3425.1,0.22519622]
[1762540294880,0.7725182,3426.2,3424.9,0.001]
[1762540294881,1.259712,3425.7,3424.9,0.001]
[1762540295067,3.26230802,3425.0,3424.9,0.001]
[1762540295399,4.48233879,3425.0,3424.9,0.001]
[1762540295548,4.73333879,3425.0,3424.9,0.001]
[1762540295745,0.0461,3425.0,3424.9,0.001]
[1762540296094,6.46547001,3425.8,3424.9,0.001]
[1762540296095,0.0461,3425.4,3424.9,0.001]
[1762540296441,2.96549321,3425.4,3424.9,0.001]
[1762540296686,2.91951498,3425.3,3424.9,0.001]
[1762540296891,2.91956974,3425.2,3424.9,0.001]
[1762540297382,4.06877521,3425.4,3424.9,0.001]
[1762540297539,0.8528782,3425.4,3424.9,0.001]
[1762540297745,2.9195255,3425.3,3424.9,0.001]
[1762540298044,2.91970802,3425.0,3424.9,0.001]
[1762540298263,0.8528782,3425.4,3424.9,0.001]
[1762540298467,3.77225592,3425.4,3424.9,0.001]
[1762540298774,2.91951038,3425.3,3424.9,0.001]
[1762540298941,0.79513891,3425.3,3424.9,0.001]
[1762540299278,2.91970802,3425.0,3424.9,0.001]
[1762540299486,3.21620802,3425.0,3424.9,0.001]
[1762540299783,3.46720802,3425.0,3424.9,0.001]
[1762540300341,0.0461,3425.4,3424.9,0.001]
[1762540300541,1.259712,3425.2,3424.9,0.001]
[1762540300760,4.43042002,3425.0,3424.9,0.001]
[1762540301166,4.72642002,3425.0,3424.9,0.001]
[1762540301587,4.43042002,3425.0,3424.9,0.001]
[1762540301769,4.72642002,3425.0,3424.9,0.001]
[1762540302088,4.43042002,3425.0,3424.9,0.001]
[1762540302278,5.4774461,3425.0,3424.9,0.001]
[1762540304366,4.17976105,3424.6,3424.5,0.001]
[1762540304687,4.43076105,3424.6,3424.5,0.001]
[1762540304890,5.13226505,3424.6,3424.5,0.001]
[1762540305095,6.28803379,3424.6,3424.5,0.001]
[1762540305606,6.28803379,3424.6,3422.6,0.1856]
[1762540305607,0.405504,3424.4,3422.6,0.1856]
[1762540305773,0.405504,3423.2,3422.6,0.1856]
[1762540305954,0.405504,3423.7,3422.6,0.1856]
[1762540306154,0.405504,3423.2,3422.6,3.10734532]
[1762540306380,0.405504,3423.2,3422.7,2.92166855]
[1762540306606,0.405504,3423.6,3423.1,0.6713]
[1762540306758,0.405504,3423.9,3423.1,3.62178246]
[1762540306958,0.405504,3423.7,3423.1,3.59256918]
[1762540307194,0.405504,3423.7,3423.4,2.92102004]
[1762540307380,1.665216,3423.8,3423.3,2.9211385]
[1762540307569,0.405504,3423.8,3423.1,0.84300506]
[1762540307769,1.665216,3423.8,3423.3,2.92114941]
[1762540307988,1.665216,3424.0,3423.1,0.1916]
[1762540308169,0.405504,3423.7,3423.1,3.11292728]
[1762540308380,0.405504,3423.7,3423.2,2.92123942]
[1762540309112,0.405504,3423.8,3423.6,0.4797]
[1762540309410,0.0461,3425.4,3423.8,2.92073135]
[1762540309702,0.0461,3425.4,3423.3,0.4673]
[1762540309703,0.0461,3425.4,3424.6,2.91999621]
[1762540309902,2.91846699,3426.5,3424.7,0.49649963]
[1762540309903,6.46547001,3426.4,3424.7,0.49649963]
[1762540310076,1.259712,3425.7,3424.3,0.6529]
[1762540310402,2.91953854,3425.2,3424.3,0.1856]
[1762540310641,0.405504,3424.8,3424.3,0.1856]
[1762540310784,0.1456,3424.3,3424.1,0.1856]
[1762540311406,1.786216,3424.9,3424.1,0.1856]
[1762540311568,0.1456,3424.1,3423.6,0.4673]
[1762540311771,0.1456,3423.8,3423.6,0.4673]
[1762540312005,0.1456,3423.8,3423.7,2.92081666]
[1762540312207,0.1456,3423.8,3423.7,3.86781666]
[1762540312408,0.458,3424.8,3424.1,2.92044934]
[1762540312409,0.405504,3424.8,3424.1,2.92044934]
[1762540312608,1.380712,3424.9,3424.2,2.92034778]
[1762540312793,0.1456,3424.2,3424.1,0.1856]
[1762540312983,0.1456,3424.2,3424.1,3.10601686]
[1762540313182,0.1456,3424.2,3424.1,1.1326]
[1762540313685,0.1456,3424.2,3424.1,4.05307545]
[1762540313880,0.1456,3424.2,3424.1,1.1326]
[1762540314187,0.551104,3424.2,3423.7,0.4673]
[1762540314375,0.121,3424.9,3424.2,2.92037896]
[1762540314576,0.405504,3424.8,3424.2,2.92037896]
[1762540314967,0.121,3425.1,3424.1,0.1856]
[1762540315172,0.355504,3425.0,3424.3,0.02920304]
[1762540315402,0.1456,3424.2,3424.1,3.57337545]
[1762540315702,0.1456,3424.2,3424.1,3.10607545]
[1762540315905,0.1456,3424.2,3424.1,3.58577545]
[1762540316413,0.1456,3424.2,3424.1,4.05307545]
[1762540316706,7.08461232,3425.3,3424.4,2.92017148]
[1762540316707,1.259712,3425.2,3424.4,2.92017148]
[1762540316908,1.259712,3425.0,3424.5,2.92012309]
[1762540317276,0.405504,3424.9,3424.5,2.92012309]
[1762540317477,0.405504,3424.9,3424.6,0.4673]
[1762540317879,3.1039452,3425.4,3424.6,0.4673]
[1762540317880,1.259712,3425.4,3424.8,0.4797]
[1762540318098,6.62661232,3425.8,3424.9,3.39949039]
[1762540318099,1.259712,3425.5,3424.9,3.39949039]
[1762540318312,0.1456,3425.1,3425.0,3.38694738]
[1762540318616,0.1456,3425.1,3424.9,0.1856]
[1762540318811,0.1456,3425.1,3424.6,2.92004896]
[1762540319308,0.1456,3425.1,3424.5,0.1456]
[1762540319309,0.1456,3425.1,3424.8,2.91987853]
[1762540319497,0.1456,3425.1,3425.0,3.39940802]
[1762540319697,0.1456,3425.1,3425.0,0.4797]
[1762540320236,0.1456,3425.1,3425.0,3.39940802]
[1762540320514,0.1456,3425.3,3425.0,1.58184754]
[1762540320699,0.405504,3425.5,3425.0,0.947]
[1762540320911,0.1456,3425.2,3425.1,3.10522278]
[1762540321420,0.0956,3425.2,3425.1,4.05222278]
[1762540322514,0.1456,3425.8,3425.1,1.2782]
[1762540322688,0.0994,3425.9,3425.1,0.6653]
[1762540322886,0.1456,3425.1,3424.1,0.667]
[1762540323113,3.06565279,3424.6,3424.1,0.667]
[1762540323324,0.1456,3424.6,3424.1,0.667]
[1762540323635,0.70529123,3425.0,3424.5,3.37935848]
[1762540323834,1.717112,3426.0,3424.5,3.37935848]
[1762540323835,0.1456,3424.7,3424.6,3.43064954]
[1762540324017,0.005,3425.9,3425.8,0.6502]
[1762540324323,0.005,3425.9,3424.7,0.4814]
[1762540324324,0.005,3425.9,3425.4,2.91928269]
[1762540324529,0.005,3425.9,3425.8,0.4593]
[1762540324892,0.005,3425.9,3425.8,3.88891647]
[1762540325090,0.005,3425.9,3425.8,4.26770786]
[1762540325436,0.005,3425.9,3425.8,3.85972621]
[1762540325600,0.002,3426.3,3426.2,2.91868542]
[1762540325802,0.002,3426.3,3426.2,3.37798542]
[1762540326000,0.002,3426.3,3426.2,3.85938542]
[1762540326419,0.007,3426.9,3426.8,2.91817439]
[1762540326420,1e-08,3426.9,3426.8,2.91817439]
[1762540326593,0.003,3427.6,3427.5,2.9175784]
[1762540326791,0.003,3427.6,3427.5,3.5677784]
[1762540327017,0.003,3427.6,3427.5,4.0491784]
[1762540327421,0.003,3427.6,3427.5,0.6502]
[1762540327730,0.003,3427.6,3427.5,1.1316]
[1762540328389,0.003,3427.6,3427.5,4.48327736]
[1762540328593,0.003,3427.6,3427.5,4.45410158]
[1762540330393,0.005,3427.6,3427.5,4.45410158]
[1762540333659,0.005,3428.9,3428.4,2.91675239]
[1762540333817,0.005,3428.9,3428.8,3.37577223]
[1762540334137,0.005,3428.9,3428.4,2.916749]
[1762540334366,0.1506,3428.9,3428.3,0.8179]
[1762540334677,0.191,3428.8,3427.8,0.4814]
[1762540334839,0.191,3428.8,3427.2,0.4814]
[1762540334840,0.405504,3428.3,3427.2,0.4814]
[1762540335042,0.405504,3427.9,3427.0,0.001]
[1762540335514,2.91765037,3427.5,3427.0,0.001]
[1762540335700,0.405504,3427.7,3427.0,0.001]
[1762540335914,0.005,3428.9,3427.6,0.4593]
[1762540336113,0.005,3428.9,3427.7,0.48847408]
[1762540336313,0.005,3428.9,3427.2,0.4814]
[1762540336314,0.862904,3428.7,3427.2,0.4814]
[1762540336558,2.9169805,3428.3,3427.4,2.9176336]
[1762540336852,2.91698602,3428.2,3427.2,0.4814]
[1762540337157,0.405504,3428.1,3427.5,2.91755503]
[1762540337450,1.665216,3428.5,3427.7,2.91733118]
[1762540337652,1.26405721,3429.0,3427.2,0.4814]
[1762540337866,1.26405721,3429.0,3427.0,0.001]
[1762540337867,2.91680397,3428.5,3427.3,0.4814]
[1762540338029,1.259712,3428.7,3427.3,0.4814]
[1762540338228,1.259712,3428.8,3428.1,2.91699065]
[1762540338452,1.259712,3428.8,3427.3,0.4814]
[1762540338453,0.005,3428.9,3428.3,2.91687686]
[1762540338631,0.005,3428.9,3428.8,0.1909]
[1762540338835,0.005,3428.9,3428.8,3.10737223]
[1762540339055,0.005,3428.9,3428.8,3.58877223]
[1762540341178,0.005,3429.9,3428.8,0.6723]
[1762540341382,1.33901255,3432.9,3429.8,0.1909]
[1762540341383,6.70582287,3432.9,3429.8,0.1909]
[1762540341682,2.91356083,3432.3,3431.1,3.10539171]
[1762540341970,0.191,3432.8,3431.8,2.91392272]
[1762540342218,0.191,3432.8,3431.1,0.1909]
[1762540342364,0.07921055,3432.9,3431.1,3.10541449]
[1762540342365,6.62661232,3432.5,3431.1,3.10541449]
[1762540342548,6.62661232,3432.5,3430.8,0.1909]
[1762540342549,0.191,3431.8,3430.8,0.1909]
[1762540342749,0.191,3431.8,3430.7,2.91478253]
[1762540342750,3.56234343,3431.8,3430.7,2.91478253]
[1762540342949,1.01939557,3431.7,3430.6,0.1909]
[1762540343268,0.405504,3431.4,3429.8,3.10645237]
[1762540343593,1.665216,3431.4,3430.0,0.1909]
[1762540343791,0.405504,3431.2,3430.0,0.1909]
[1762540344090,0.405504,3431.2,3430.3,2.91518572]
[1762540344233,0.252812,3431.1,3430.2,2.91527143]
[1762540344438,0.252812,3431.1,3430.5,2.91495226]
[1762540344640,0.252812,3431.1,3430.3,3.06079265]
[1762540344641,0.1456,3430.9,3430.3,3.06079265]
[1762540344949,0.1456,3430.9,3430.3,0.1456]
[1762540345353,0.1456,3430.6,3430.0,0.627]
[1762540345663,0.1456,3431.4,3430.9,2.9146871]
[1762540345866,0.1456,3431.4,3429.9,3.10641757]
[1762540345867,0.1456,3431.4,3430.5,0.4814]
[1762540346101,0.4574,3432.2,3431.3,2.91431332]
[1762540346102,0.1456,3431.6,3431.3,2.91431332]
[1762540346413,0.1456,3431.6,3431.0,0.3365]
[1762540346593,0.1456,3431.6,3431.3,2.9143041]
[1762540347792,0.1456,3431.6,3431.1,2.91451721]
[1762540347793,0.1456,3431.6,3431.0,3.25109902]
[1762540347992,0.1456,3431.6,3431.2,2.9143482]
[1762540348317,0.410504,3431.9,3431.0,0.1909]
[1762540348496,0.1456,3431.7,3431.1,3.06011721]
[1762540348693,0.1456,3431.7,3431.1,0.1456]
[1762540348890,0.1456,3431.5,3431.0,0.1909]
[1762540349095,0.1456,3431.5,3431.0,3.10547401]
[1762540349419,0.005,3431.9,3431.0,0.6723]
[1762540349642,0.007,3431.9,3431.0,0.6723]
[1762540349786,0.007,3431.9,3431.1,0.4814]
[1762540349989,0.007,3431.9,3431.8,2.91392272]
[1762540350483,0.007,3431.9,3431.8,3.39532272]
[1762540351724,0.007,3431.9,3431.8,3.36532272]
[1762540352236,0.007,3431.9,3431.8,3.25123272]
[1762540353725,0.007,3431.9,3431.8,2.91392272]
[1762540353936,0.007,3431.9,3431.2,3.37860931]
[1762540354255,0.007,3431.9,3431.8,2.91392272]
[1762540355063,0.007,3431.9,3431.8,3.37812272]
[1762540356836,0.07921055,3432.9,3432.8,2.91307387]
[1762540358281,0.07921055,3432.9,3432.6,2.91322736]
[1762540358605,0.07921055,3432.9,3432.6,2.91317362]
[1762540358953,0.07921055,3432.9,3432.7,2.91314137]
[1762540359156,0.07921055,3432.9,3432.8,2.91307387]
[1762540359766,0.07921055,3432.9,3432.8,4.00467387]
[1762540360192,0.07921055,3432.9,3432.8,3.54047387]
[1762540360493,0.07921055,3432.9,3432.8,3.54337387]
[1762540360903,0.07921055,3432.9,3432.8,0.1456]
[1762540361065,0.82171055,3432.9,3431.5,0.4597]
[1762540361264,0.34711055,3432.9,3431.6,2.91409255]
[1762540361700,0.07921055,3432.9,3431.7,0.4597]
[1762540361857,0.07921055,3432.9,3432.8,2.91307387]
[1762540362698,0.27651055,3432.9,3432.6,2.91316306]
[1762540363050,0.27651055,3432.9,3432.3,2.91344467]
[1762540363255,0.27651055,3432.9,3431.8,0.4597]
[1762540363591,3.18950868,3432.9,3432.2,2.91355987]
[1762540363750,2.91308177,3432.8,3431.9,2.91376886]
[1762540363950,0.4776,3432.8,3431.3,0.4597]
[1762540364150,2.91327859,3432.6,3431.3,0.4597]
[1762540364396,2.91327859,3432.6,3431.8,2.91388151]
[1762540364551,3.54373797,3432.5,3431.7,2.91397886]
[1762540364747,3.54373797,3432.5,3431.8,2.91391073]
[1762540365233,0.63039938,3432.5,3431.3,0.4597]
[1762540365505,0.63039938,3432.5,3430.9,0.001]
[1762540365506,2.91383537,3432.0,3430.9,0.001]
[1762540365844,2.91383537,3432.0,3431.3,2.91434295]
[1762540366025,3.10496625,3431.9,3431.2,2.91439778]
[1762540366237,0.0717,3431.1,3430.9,0.001]
[1762540366439,0.0047,3431.0,3430.9,0.001]
[1762540366837,0.4823,3431.0,3430.9,0.001]
[1762540367150,3.39690215,3431.0,3430.9,0.001]
[1762540367452,0.4823,3431.0,3430.9,0.001]
[1762540367612,3.39690215,3431.0,3430.9,0.001]
[1762540368333,4.0280367,3431.0,3430.9,0.001]
[1762540368937,1.11343455,3431.0,3430.9,0.001]
[1762540369151,0.4823,3431.0,3430.9,0.001]
[1762540370254,4.65661415,3431.0,3430.9,0.001]
[1762540370943,11.28322647,3431.0,3430.9,0.001]
[1762540371146,11.68873047,3431.0,3430.9,0.001]
[1762540371350,1.742012,3431.0,3430.9,0.001]
[1762540371646,0.0047,3431.0,3430.9,0.001]
[1762540371831,0.4776,3431.4,3430.9,0.001]
[1762540372033,7.46733657,3431.9,3430.9,0.001]
[1762540372034,0.84072425,3431.9,3430.9,0.001]
[1762540372235,0.1911,3431.9,3430.9,0.001]
[1762540372758,0.1911,3431.9,3431.4,2.91426224]
[1762540373264,0.6687,3431.9,3430.9,0.001]
[1762540373450,0.6687,3431.9,3431.3,2.9142744]
[1762540373758,3.58254222,3431.9,3431.3,2.9142744]
[1762540373965,0.6687,3431.9,3430.9,0.001]
[1762540374120,0.6687,3431.9,3431.0,2.91460215]
[1762540374323,2.91329264,3432.6,3431.0,2.91460215]
[1762540374324,0.4776,3432.7,3431.1,0.02914517]
[1762540374661,0.4776,3433.1,3431.2,2.91443226]
[1762540374857,2.91315873,3432.7,3431.2,2.91443226]
[1762540375058,0.36692693,3432.6,3432.0,2.91368319]
[1762540375259,0.36692693,3432.6,3431.3,0.81585323]
[1762540375459,0.27851055,3432.9,3431.4,3.3739624]
[1762540375663,0.4776,3432.8,3431.5,2.91417747]
[1762540375965,0.27851055,3432.9,3432.3,2.9134168]
[1762540376180,0.27851055,3432.9,3432.5,2.9132743]
[1762540376381,0.27851055,3432.9,3432.6,2.91321924]
[1762540376543,0.27851055,3432.9,3432.1,0.1874]
[1762540376744,0.93668898,3432.9,3432.5,2.91329749]
[1762540377080,0.27851055,3432.9,3432.5,2.91328759]
[1762540377282,0.27851055,3432.9,3432.1,0.1874]
[1762540377467,0.27851055,3432.9,3432.4,2.91335987]
[1762540377782,0.27851055,3432.9,3431.8,2.91387111]
[1762540378077,0.27851055,3432.9,3432.2,2.91357022]
[1762540378078,2.91313512,3432.8,3432.2,2.91357022]
[1762540378453,3.39075873,3432.7,3431.8,2.9138415]
[1762540378659,0.30774684,3432.8,3432.2,2.91351993]
[1762540378979,0.30774684,3432.8,3432.2,2.9135572]
[1762540379282,0.30774684,3432.8,3431.5,0.4597]
[1762540379656,0.27851055,3432.9,3431.3,0.35615323]
[1762540379984,0.27851055,3432.9,3431.7,2.91400763]
[1762540380187,0.27851055,3432.9,3432.4,2.91336845]
[1762540380486,0.27851055,3432.9,3431.3,0.35615323]
[1762540380487,0.75611055,3432.9,3431.3,0.35615323]
[1762540380689,0.08121055,3432.9,3432.1,0.1874]
[1762540380980,0.27851055,3432.9,3432.1,0.1874]
[1762540381384,0.08121055,3432.9,3432.8,2.91307387]
[1762540381748,0.08121055,3432.9,3432.8,4.44009811]
[1762540381976,0.08121055,3432.9,3432.8,3.49569811]
[1762540382280,0.08121055,3432.9,3432.8,2.91307387]
[1762540382858,0.08121055,3432.9,3432.8,3.53107387]
[1762540383064,0.08121055,3432.9,3432.8,3.05867387]
[1762540383268,0.08121055,3432.9,3432.7,2.91314653]
[1762540383450,0.08121055,3432.9,3432.1,0.1852]
[1762540383774,0.26951055,3432.9,3432.4,2.36504326]
[1762540384082,0.58774669,3432.9,3431.6,0.4778]
[1762540384284,0.58774669,3432.9,3431.7,2.91400763]
[1762540384285,0.26951055,3432.9,3431.7,2.91400763]
[1762540384588,2.91316631,3432.7,3431.6,0.4778]
[1762540384763,2.91313106,3432.8,3431.6,0.4778]
[1762540384947,0.76321055,3432.9,3431.6,0.4778]
[1762540385344,0.08121055,3432.9,3432.8,2.91307387]
[1762540385651,0.08121055,3432.9,3432.2,2.91352597]
[1762540385652,0.26951055,3432.9,3432.2,2.91352597]
[1762540385891,0.08121055,3432.9,3432.8,2.91307387]
[1762540386192,0.08121055,3432.9,3432.8,3.38547387]
[1762540386360,0.08121055,3432.9,3432.8,3.86327387]
[1762540386560,0.08121055,3432.9,3432.8,2.91307387]
[1762540386866,0.08121055,3432.9,3432.7,2.91312309]
[1762540387076,0.08121055,3432.9,3432.8,2.91307387]
[1762540387586,0.08121055,3432.9,3432.2,0.60124609]
[1762540387886,0.08121055,3432.9,3432.2,0.4778]
[1762540388094,0.08121055,3432.9,3432.5,2.9132902]
[1762540388304,0.08121055,3432.9,3432.2,0.4778]
[1762540388455,0.08121055,3432.9,3432.8,3.38547387]
[1762540388655,0.08121055,3432.9,3432.8,2.91307387]
[1762540388894,0.08121055,3432.9,3432.3,0.4778]
[1762540389209,0.08121055,3432.9,3432.8,3.38547387]
[1762540389549,0.08121055,3432.9,3432.8,3.86327387]
[1762540389768,1e-08,3432.9,3432.8,3.86327387]
[1762540389981,1e-08,3432.9,3432.8,3.38547387]
[1762540390280,1e-08,3432.9,3432.8,2.91307387]
[1762540390848,1e-08,3432.9,3432.8,3.495698]
[1762540391263,1e-08,3432.9,3432.8,2.91307387]
[1762540391456,1e-08,3432.9,3432.7,2.91314823]
[1762540391700,1e-08,3432.9,3432.4,0.35765495]
[1762540391900,1e-08,3432.9,3432.8,2.91307387]
[1762540392662,1e-08,3432.9,3432.8,2.9422046]
[1762540392858,1e-08,3432.9,3432.4,0.4778]
[1762540393198,1e-08,3432.9,3432.8,2.91307387]
[1762540394214,3.64639596,3432.9,3431.5,0.4778]
[1762540394419,0.65592263,3432.8,3431.0,0.4778]
[1762540394560,0.18830001,3432.9,3430.8,0.1874]
[1762540394760,0.18830001,3432.9,3431.2,0.50694432]
[1762540394965,0.18830001,3432.9,3431.2,0.4778]
[1762540395172,0.18830001,3432.9,3431.5,2.91417747]
[1762540395379,0.18830001,3432.9,3431.3,2.91434733]
[1762540395698,0.18830001,3432.9,3431.5,2.91417747]
[1762540395873,0.4937,3432.8,3432.5,2.91332385]
[1762540396078,0.4937,3432.8,3432.5,2.91326488]
[1762540396288,0.0558,3432.6,3432.5,2.91326488]
[1762540396478,0.0558,3432.6,3431.5,0.4778]
[1762540396681,0.0558,3432.6,3432.1,2.91358664]
[1762540396874,0.4893,3432.5,3431.9,2.91376666]
[1762540397070,0.83511824,3432.5,3431.8,2.91389715]
[1762540397391,2.9134176,3432.4,3431.8,2.91385757]
[1762540397569,0.4937,3432.4,3431.9,2.91383242]
[1762540397775,2.9134304,3432.4,3431.8,2.91390546]
[1762540398009,0.4937,3432.3,3431.8,2.91390546]
[1762540398321,0.4937,3432.3,3431.3,2.91434733]
[1762540398475,0.4937,3432.3,3431.4,0.35845473]
[1762540398691,3.40720844,3432.3,3431.5,2.91416444]
[1762540398882,3.40720844,3432.3,3431.7,2.91399297]
[1762540399122,0.4937,3432.2,3431.7,2.91399297]
[1762540399276,0.4937,3432.2,3431.4,0.35845473]
[1762540399476,0.4937,3432.2,3431.5,0.32728277]
[1762540399717,0.4937,3432.2,3431.1,0.1924]
[1762540400118,0.0558,3431.2,3431.1,0.005]
[1762540400315,3.15833226,3431.2,3431.1,0.005]
[1762540400516,4.05633626,3431.2,3431.1,0.005]
[1762540400699,4.75340369,3431.2,3431.1,0.005]
[1762540401281,1.83897143,3431.2,3431.1,0.005]
[1762540401477,4.05633626,3431.2,3431.1,0.005]
[1762540404211,4.05633626,3431.2,3430.9,0.001]
[1762540404212,3.32010615,3431.0,3430.9,0.001]
[1762540404439,3.87280615,3431.0,3430.9,0.001]
[1762540406674,3.87280615,3431.0,3430.7,0.001]
[1762540406675,3.32027606,3430.8,3430.7,0.001]
[1762540406809,3.81427606,3430.8,3430.7,0.001]